[Event "IV Torneo de Semana Santa"]
[Site "Los Llanos de Aridane"]
[Date "2019.04.13"]
[Round "1.5"]
[White "Espinel Rosales, Yeremay"]
[Black "Hernandez Leon, Alberto"]
[Result "0-1"]
[ECO "A40"]
[WhiteElo "1453"]
[BlackElo "2280"]
[Annotator "ChessBase"]
[PlyCount "42"]
[EventDate "2019.04.13"]
[EventType "swiss"]
[EventCountry "ESP"]
[SourceTitle "playchess.com"]
[Source "ChessBase"]
[SourceQuality "1"]
[TimeControl "5400+30"]

1. d4 {[%emt 0:00:00]} c5 {[%emt 0:00:00]} 2. d5 {[%emt 0:00:00]} g6 {[%emt 0:00:00]} 3. c4 {[%emt 0:00:29]} Bg7 {[%emt 0:00:09]} 4. Nc3 {[%emt 0:01:00]} Bxc3+ {[%emt 0:00:41]} 5. bxc3 {[%emt 0:00:10]} f5 {[%emt 0:00:06]} 6. g3 {[%emt 0:01:10]} Qa5 {[%emt 0:01:04]} 7. Qc2 {[%emt 0:04:45]} Nf6 {[%emt 0:00:24]} 8. Bg2 {[%emt 0:00:41]} d6 {[%emt 0:00:12]} 9. Bd2 {[%emt 0:03:38]} Nbd7 {[%emt 0:00:35]} 10. Nh3 {[%emt 0:04:27]} Nb6 {[%emt 0:02:51]} 11. O-O {[%emt 0:00:18]} Qa6 {[%emt 0:03:34]} 12. Rfe1 {[%emt 0:03:44]} Qxc4 {[%emt 0:02:03]} 13. e4 {[%emt 0:00:44]} fxe4 {[%emt 0:01:05]} 14. Bf1 {[%emt 0:00:28]} Qxd5 {[%emt 0:03:23]} 15. Nf4 {[%emt 0:00:22]} Qf7 {[%emt 0:01:02]} 16. Rab1 {[%emt 0:01:18]} O-O {[%emt 0:02:50]} 17. c4 {[%emt 0:02:30]} g5 {[%emt 0:02:30]} 18. Nd5 {[%emt 0:00:45]} Nfxd5 {[%emt 0:00:58]} 19. cxd5 {[%emt 0:00:13]} Qxf2+ {[%emt 0:00:18]} 20. Kh1 {[%emt 0:00:43]} Bg4 {[%emt 0:00:49]} 21. Be2 {[%emt 0:01:20]} Bxe2 {[%emt 0:00:31]} 0-1

[Event "IV Torneo de Semana Santa"]
[Site "Los Llanos de Aridane"]
[Date "2019.04.13"]
[Round "1.6"]
[White "Rodriguez Ferraz, Borja"]
[Black "Gomez, Carlos David"]
[Result "1-0"]
[ECO "A38"]
[WhiteElo "2212"]
[BlackElo "2340"]
[Annotator "NA"]
[PlyCount "33"]
[EventDate "2019.04.13"]
[EventType "swiss"]
[EventCountry "ESP"]
[SourceTitle "playchess.com"]
[Source "ChessBase"]
[SourceQuality "1"]
[TimeControl "5400+30"]

1. c4 {[%emt 0:00:00]} c5 {[%emt 0:00:00]} 2. g3 {[%emt 0:00:15]} g6 {[%emt 0:01:58]} 3. Bg2 {[%emt 0:00:18]} Bg7 {[%emt 0:00:42]} 4. Nf3 {[%emt 0:00:32]} Nc6 {[%emt 0:01:46]} 5. O-O {[%emt 0:00:41]} e5 {[%emt 0:02:52]} 6. Nc3 {[%emt 0:01:21]} Nf6 {[%emt 0:06:51]} 7. d3 {[%emt 0:00:53]} O-O {[%emt 0:01:13]} 8. Nd2 {[%emt 0:01:09]} d6 {[%emt 0:00:37]} 9. a3 {[%emt 0:00:15]} a6 {[%emt 0:06:26]} 10. Rb1 {[%emt 0:00:36]} Qa5 {[%emt 0:08:33]} 11. Nde4 {[%emt 0:03:18]} Rd8 {[%emt 0:02:45]} 12. Nxf6+ {[%emt 0:00:59]} Bxf6 {[%emt 0:00:33]} 13. Nd5 {[%emt 0:00:05]} Bg7 {[%emt 0:02:15]} 14. Bd2 {[%emt 0:00:24]} Nb4 {[%emt 0:04:16]} 15. axb4 {[%emt 0:00:07]} cxb4 {[%emt 0:01:09]} 16. Bxb4 {[%emt 0:00:09]} Qa2 {[%emt 0:00:10]} 17. Nc3 {[%emt 0:00:15]} 1-0

[Event "IV Torneo de Semana Santa"]
[Site "Los Llanos de Aridane"]
[Date "2019.04.14"]
[Round "2.1"]
[White "Andres Gonzalez, Ivan"]
[Black "Martin Rodriguez, Pablo"]
[Result "1-0"]
[ECO "B43"]
[WhiteElo "2323"]
[BlackElo "2002"]
[Annotator "NA"]
[PlyCount "49"]
[EventDate "2019.04.13"]
[EventType "swiss"]
[EventCountry "ESP"]
[SourceTitle "playchess.com"]
[Source "ChessBase"]
[SourceQuality "1"]
[TimeControl "5400+30"]

1. e4 {[%emt 0:00:00]} c5 {[%emt 0:00:52]} 2. Nc3 {[%emt 0:00:12]} e6 {[%emt 0:00:08]} 3. Nf3 {[%emt 0:01:50]} a6 {[%emt 0:00:05]} 4. d4 {[%emt 0:01:46]} cxd4 {[%emt 0:00:06]} 5. Nxd4 {[%emt 0:00:06]} Bb4 {[%emt 0:00:07]} 6. Bd3 {[%emt 0:01:56] B43: Sicilian: Kan Variation: 5 Nc3} d6 {[%emt 0:00:32]} 7. O-O {[%emt 0:02:42]} Nf6 {[%emt 0:00:07]} 8. Bg5 {[%emt 0:02:07]} (8. Nce2 Bc5 9. Kh1 b5 10. a4 b4 11. Nb3 Ba7 12. Bg5 Nc6 13. f4 h6 14. Bxf6 Qxf6 {1-0 (31) Grigoryan,K (2571)-Aranda Marin,C (2316) Roquetas de Mar 2017}) 8... Nbd7 {[%emt 0:01:19]} 9. Kh1 {[%emt 0:06:06]} O-O {[%emt 0:02:27]} 10. f4 {[%emt 0:03:14]} Qc7 {[%emt 0:00:31]} 11. Qf3 $146 {[%emt 0:01:44]} ({Predecessor:} 11. Nce2 b5 12. c3 Bc5 13. Ng3 Bb7 14. Qe2 {1-0 (36) Borges,V (2179)-Sakakibara,S (2037) Maringa 2018}) 11... Bxc3 {[%emt 0:02:14]} 12. bxc3 {[%emt 0:02:10]} h6 {[%emt 0:03:26]} 13. Bh4 {[%emt 0:02:13]} b5 {[%emt 0:03:14]} 14. Rae1 {[%emt 0:08:50]} Bb7 {[%emt 0:05:28]} 15. Qg3 {[%emt 0:04:28]} Rac8 {[%emt 0:04:44]} 16. e5 {[%emt 0:04:23]} dxe5 {[%emt 0:02:10]} 17. fxe5 {[%emt 0:00:39]} Nd5 {[%emt 0:00:18]} 18. Rf3 {[%emt 0:10:03]} Nxc3 {[%emt 0:06:17]} 19. Bf6 {[%emt 0:16:42]} Nxf6 {[%emt 0:01:37]} 20. Rxf6 {[%emt 0:00:12]} Kh8 $2 {[%emt 0:09:12] [#]} (20... Rfd8 $11 {and Black stays safe.} 21. Rf4 g5) 21. Qh4 $3 {[%emt 0:08:38]} Rfd8 {[%emt 0:08:05]} 22. Rxh6+ {[%emt 0:05:23]} gxh6 {[%emt 0:00:09]} 23. Qxh6+ {[%emt 0:01:08]} Kg8 {[%emt 0:00:02]} 24. Bh7+ {[%emt 0:02:54]} Kh8 {[%emt 0:00:08]} 25. Re3 {[%emt 0:04:40]} 1-0

[Event "IV Torneo de Semana Santa"]
[Site "Los Llanos de Aridane"]
[Date "2019.04.14"]
[Round "2.2"]
[White "Rodriguez Falcon, Jesus Manuel"]
[Black "Brito Garcia, Alfredo"]
[Result "0-1"]
[ECO "A05"]
[WhiteElo "1936"]
[BlackElo "2311"]
[Annotator "NA"]
[PlyCount "56"]
[EventDate "2019.04.13"]
[EventType "swiss"]
[EventCountry "ESP"]
[SourceTitle "playchess.com"]
[Source "ChessBase"]
[SourceQuality "1"]
[TimeControl "5400+30"]

1. e4 {[%emt 0:05:25]} d6 {[%emt 0:01:02]} 2. Nf3 {[%emt 0:00:53]} Nf6 {[%emt 0:01:20]} 3. d3 {[%emt 0:00:45]} g6 {[%emt 0:00:58]} 4. g3 {[%emt 0:00:08]} Bg7 {[%emt 0:00:27]} 5. Bg2 {[%emt 0:00:09]} O-O {[%emt 0:00:35]} 6. O-O {[%emt 0:00:08]} e5 {[%emt 0:03:01]} 7. c3 {[%emt 0:03:16]} Nbd7 {[%emt 0:02:13]} 8. Re1 {[%emt 0:04:52]} a5 {[%emt 0:15:46]} 9. d4 {[%emt 0:03:55]} Re8 {[%emt 0:04:27]} 10. Nbd2 {[%emt 0:03:29]} a4 {[%emt 0:03:08]} 11. b4 {[%emt 0:07:57]} d5 {[%emt 0:26:32]} 12. dxe5 {[%emt 0:14:03]} Nxe4 {[%emt 0:07:40]} (12... Nxe5 $11 13. Nxe5 Rxe5) 13. Nxe4 {[%emt 0:02:03]} dxe4 {[%emt 0:00:08]} 14. Ng5 {[%emt 0:00:30]} (14. Bg5 $1 $14 f6 15. exf6 Nxf6 16. Qxd8 Rxd8 17. Nd2) 14... Nxe5 {[%emt 0:02:41]} 15. Qxd8 {[%emt 0:31:00]} Rxd8 {[%emt 0:00:08]} 16. Nxe4 {[%emt 0:00:06]} Nd3 {[%emt 0:05:14]} 17. Rd1 {[%emt 0:02:36]} Bg4 $11 {[%emt 0:02:52]} 18. f3 {[%emt 0:00:52]} Nxc1 {[%emt 0:01:20]} 19. Raxc1 {[%emt 0:00:16]} Be6 {[%emt 0:02:19]} 20. a3 {[%emt 0:00:45]} Bb3 {[%emt 0:04:44]} 21. Rxd8+ {[%emt 0:03:11]} Rxd8 {[%emt 0:00:10]} 22. Nc5 {[%emt 0:00:24]} Rd1+ {[%emt 0:02:10]} 23. Rxd1 {[%emt 0:00:06]} Bxd1 {[%emt 0:00:07]} 24. Bf1 {[%emt 0:04:41]} Bxc3 {[%emt 0:04:12]} 25. Nxb7 {[%emt 0:01:20]} Bb2 {[%emt 0:01:19]} 26. Bb5 {[%emt 0:00:59]} Bxa3 {[%emt 0:00:53]} 27. Nc5 {[%emt 0:00:14]} Bxb4 {[%emt 0:00:00]} 28. Nxa4 {[%emt 0:00:06]} Bxf3 {[%emt 0:00:17]} 0-1

[Event "IV Torneo de Semana Santa"]
[Site "Los Llanos de Aridane"]
[Date "2019.04.14"]
[Round "2.3"]
[White "Acosta Sosa, Juan Manuel"]
[Black "Bazan Solera, Manuel"]
[Result "1-0"]
[ECO "A26"]
[WhiteElo "2287"]
[BlackElo "1923"]
[Annotator "NA"]
[PlyCount "39"]
[EventDate "2019.04.13"]
[EventType "swiss"]
[EventCountry "ESP"]
[SourceTitle "playchess.com"]
[Source "ChessBase"]
[SourceQuality "1"]
[TimeControl "5400+30"]

1. c4 {[%emt 0:00:00]} Nf6 {[%emt 0:00:00]} 2. Nc3 {[%emt 0:00:00]} g6 {[%emt 0:00:00]} 3. g3 {[%emt 0:00:09]} Bg7 {[%emt 0:00:02]} 4. Bg2 {[%emt 0:00:06]} d6 {[%emt 0:00:26]} 5. e4 {[%emt 0:00:22]} O-O {[%emt 0:00:12]} 6. Nge2 {[%emt 0:00:06]} Nc6 {[%emt 0:00:56]} 7. O-O {[%emt 0:00:14]} e5 {[%emt 0:02:59]} 8. d3 {[%emt 0:00:09]} Bg4 {[%emt 0:03:34]} 9. f3 {[%emt 0:00:28]} Be6 {[%emt 0:02:02]} 10. f4 {[%emt 0:00:12]} Bg4 {[%emt 0:01:11]} 11. h3 {[%emt 0:00:37]} Bxe2 {[%emt 0:01:01]} 12. Nxe2 {[%emt 0:00:24]} Nh5 {[%emt 0:03:01]} 13. f5 {[%emt 0:00:59]} Bf6 {[%emt 0:05:32]} 14. g4 {[%emt 0:02:50]} Ng7 {[%emt 0:03:23]} 15. Nc3 {[%emt 0:00:16]} Ne7 {[%emt 0:02:36]} 16. g5 {[%emt 0:00:13]} Bxg5 $18 {[%emt 0:01:07]} 17. Bxg5 {[%emt 0:00:08]} f6 {[%emt 0:00:08]} 18. Bh6 {[%emt 0:00:51]} gxf5 {[%emt 0:00:56]} 19. exf5 {[%emt 0:00:35]} Nexf5 {[%emt 0:01:49]} 20. Rxf5 {[%emt 0:00:14]} 1-0

[Event "IV Torneo de Semana Santa"]
[Site "Los Llanos de Aridane"]
[Date "2019.04.14"]
[Round "2.4"]
[White "Navio Lopez, Manuel"]
[Black "Alonso Alvarez, Aitor"]
[Result "*"]
[ECO "E14"]
[WhiteElo "1877"]
[BlackElo "2284"]
[Annotator "ChessBase"]
[PlyCount "44"]
[EventDate "2019.04.13"]
[EventType "swiss"]
[EventCountry "ESP"]
[SourceTitle "playchess.com"]
[Source "ChessBase"]
[SourceQuality "1"]
[TimeControl "5400+30"]

1. Nf3 {[%emt 0:11:27]} Nf6 {[%emt 0:00:00]} 2. b3 {[%emt 0:00:05]} d5 {[%emt 0:01:05]} 3. Bb2 {[%emt 0:00:08]} e6 {[%emt 0:00:08]} 4. e3 {[%emt 0:00:26]} Bd6 {[%emt 0:00:27]} 5. d4 {[%emt 0:00:14]} O-O {[%emt 0:00:12]} 6. Bd3 {[%emt 0:00:57]} b6 {[%emt 0:00:05]} 7. O-O {[%emt 0:00:09]} Bb7 {[%emt 0:00:03]} 8. c4 {[%emt 0:00:15]} Ne4 {[%emt 0:00:54]} 9. cxd5 {[%emt 0:02:16]} exd5 {[%emt 0:00:16]} 10. Nc3 {[%emt 0:00:46]} a6 {[%emt 0:04:37]} 11. Rc1 {[%emt 0:04:55]} Nd7 {[%emt 0:02:41]} 12. Qc2 {[%emt 0:02:09]} Re8 {[%emt 0:03:25]} 13. a3 {[%emt 0:00:25]} Qe7 {[%emt 0:01:18]} 14. Ne2 {[%emt 0:05:33]} Rec8 {[%emt 0:14:06]} 15. Ng3 {[%emt 0:02:52]} Nxg3 {[%emt 0:15:42]} 16. Bxh7+ {[%emt 0:00:44]} Kh8 {[%emt 0:00:54]} 17. fxg3 {[%emt 0:00:49]} g6 {[%emt 0:25:05]} 18. Bxg6 {[%emt 0:01:20]} fxg6 {[%emt 0:02:08]} 19. Ne5 {[%emt 0:00:02]} Bxe5 {[%emt 0:12:23]} 20. dxe5 {[%emt 0:00:21]} Qe6 {[%emt 0:11:12]} 21. Rf4 {[%emt 0:09:10]} c5 {[%emt 0:00:58]} 22. Rcf1 {[%emt 0:01:35]} Rf8 {[%emt 0:00:22]} *

[Event "IV Torneo de Semana Santa"]
[Site "Los Llanos de Aridane"]
[Date "2019.04.14"]
[Round "2.5"]
[White "Hernandez Leon, Alberto"]
[Black "Rodriguez Miranda, Sergio"]
[Result "1-0"]
[ECO "E92"]
[WhiteElo "2280"]
[BlackElo "1859"]
[Annotator "NA"]
[PlyCount "59"]
[EventDate "2019.04.13"]
[EventType "swiss"]
[EventCountry "ESP"]
[SourceTitle "playchess.com"]
[Source "ChessBase"]
[SourceQuality "1"]
[TimeControl "5400+30"]

1. d4 {[%emt 0:00:00]} Nf6 {[%emt 0:00:00]} 2. Nf3 {[%emt 0:00:20]} g6 {[%emt 0:00:30]} 3. c4 {[%emt 0:00:09]} Bg7 {[%emt 0:00:08]} 4. Nc3 {[%emt 0:00:07]} O-O {[%emt 0:00:58]} 5. e4 {[%emt 0:00:15]} d6 {[%emt 0:00:53]} 6. Be2 {[%emt 0:00:12]} e5 {[%emt 0:01:07]} 7. Be3 {[%emt 0:00:34]} Qe8 {[%emt 0:05:54]} 8. dxe5 {[%emt 0:07:54]} Ng4 {[%emt 0:02:06]} 9. Bc1 {[%emt 0:00:34]} Nxe5 {[%emt 0:00:39]} 10. Nd4 {[%emt 0:06:00]} Nec6 {[%emt 0:16:35]} 11. Ndb5 {[%emt 0:05:46]} Na6 {[%emt 0:06:23]} 12. O-O {[%emt 0:01:17]} Be6 {[%emt 0:14:14]} 13. Be3 {[%emt 0:04:38]} Qd7 {[%emt 0:04:21]} 14. Qd2 {[%emt 0:03:32]} Rfe8 {[%emt 0:03:07]} 15. Rfd1 {[%emt 0:10:35]} b6 {[%emt 0:12:04]} 16. Nd5 {[%emt 0:07:31]} Rac8 {[%emt 0:07:41]} 17. Bh6 {[%emt 0:26:37]} Bh8 $16 {[%emt 0:02:05]} 18. Nbc3 {[%emt 0:02:29]} Nd4 {[%emt 0:02:44]} 19. Bf1 {[%emt 0:06:47]} Bxd5 {[%emt 0:02:34]} 20. cxd5 {[%emt 0:02:16]} Nc5 {[%emt 0:00:10]} 21. f3 {[%emt 0:01:19]} a6 {[%emt 0:00:48]} 22. Be3 {[%emt 0:02:18]} Nb5 {[%emt 0:00:09]} 23. Nxb5 {[%emt 0:00:15]} axb5 {[%emt 0:00:04]} 24. Qb4 {[%emt 0:00:14]} Re5 {[%emt 0:01:23]} 25. Bxb5 {[%emt 0:00:35]} Qe7 {[%emt 0:00:09]} 26. Qd2 {[%emt 0:01:15]} Rh5 {[%emt 0:00:44]} 27. Rac1 {[%emt 0:01:25]} Qh4 {[%emt 0:01:27]} 28. g3 {[%emt 0:00:20]} Qh3 {[%emt 0:00:08]} 29. b4 {[%emt 0:01:21]} Nd7 {[%emt 0:00:13]} 30. Bf1 {[%emt 0:00:48]} 1-0

[Event "IV Torneo de Semana Santa"]
[Site "Los Llanos de Aridane"]
[Date "2019.04.14"]
[Round "2.6"]
[White "Santos Izquierdo, Carlos"]
[Black "Rodriguez Ferraz, Borja"]
[Result "0-1"]
[ECO "E09"]
[WhiteElo "1761"]
[BlackElo "2212"]
[Annotator "NA"]
[PlyCount "120"]
[EventDate "2019.04.13"]
[EventType "swiss"]
[EventCountry "ESP"]
[SourceTitle "playchess.com"]
[Source "ChessBase"]
[SourceQuality "1"]
[TimeControl "5400+30"]

1. c4 {[%emt 0:00:00]} Nf6 {[%emt 0:00:00]} 2. g3 {[%emt 0:00:00]} e6 {[%emt 0:00:00]} 3. Bg2 {[%emt 0:00:00]} Be7 {[%emt 0:00:08]} 4. d4 {[%emt 0:00:44]} d5 {[%emt 0:01:27]} 5. Nf3 {[%emt 0:00:24]} O-O {[%emt 0:00:24]} 6. O-O {[%emt 0:00:22]} c6 {[%emt 0:01:51]} 7. Qc2 {[%emt 0:01:01]} Nbd7 {[%emt 0:00:34]} 8. Nbd2 {[%emt 0:01:01]} b6 {[%emt 0:09:19]} 9. e4 {[%emt 0:02:44]} dxe4 {[%emt 0:01:16]} 10. Nxe4 {[%emt 0:00:10]} Bb7 {[%emt 0:00:27]} 11. h3 $146 {[%emt 0:13:56] E09: Closed Catalan: Main Line: 7 Qc2 c6 8 Nbd2} ({Predecessor:} 11. Rd1 Nxe4 12. Qxe4 Qc7 13. Bf4 Bd6 14. Bxd6 Qxd6 15. c5 Qe7 16. b4 a5 17. a3 Rfd8 18. Ne5 Nxe5 19. Qxe5 axb4 20. axb4 b5 21. h4 Qd7 22. Bf3 h6 {0-1 (63) Khairullin,I (2613)-Krapivin,A (2500) St Petersburg 2009}) 11... h6 {[%emt 0:00:40]} 12. Be3 {[%emt 0:02:42]} Qc8 {[%emt 0:05:59]} 13. Rac1 {[%emt 0:03:16]} c5 {[%emt 0:04:05]} 14. Ned2 {[%emt 0:03:25]} Rd8 {[%emt 0:04:00]} 15. Rfd1 {[%emt 0:00:28]} cxd4 {[%emt 0:04:25]} 16. Nxd4 {[%emt 0:01:47]} Bxg2 {[%emt 0:00:08]} 17. Kxg2 {[%emt 0:00:07]} Qb7+ {[%emt 0:00:05]} 18. Kh2 {[%emt 0:06:00]} Bc5 {[%emt 0:04:58]} 19. f4 {[%emt 0:21:27]} e5 {[%emt 0:11:13]} 20. Nf5 {[%emt 0:01:30]} Bxe3 {[%emt 0:00:15]} 21. Nxe3 {[%emt 0:00:10]} exf4 {[%emt 0:00:33]} 22. gxf4 {[%emt 0:00:24]} Nc5 {[%emt 0:00:11]} 23. Ndf1 {[%emt 0:03:26]} Qf3 {[%emt 0:00:36]} 24. Qg2 {[%emt 0:03:25]} Qxf4+ {[%emt 0:00:56]} 25. Qg3 {[%emt 0:00:32]} Nh5 {[%emt 0:05:15]} 26. Qxf4 {[%emt 0:02:14]} Nxf4 {[%emt 0:00:02]} 27. Ng3 {[%emt 0:01:22]} Ncd3 {[%emt 0:01:44]} 28. Rc2 {[%emt 0:00:21]} Nb4 {[%emt 0:03:37]} 29. Rcd2 {[%emt 0:03:01]} Rxd2+ {[%emt 0:01:33]} 30. Rxd2 {[%emt 0:00:07]} Nxa2 {[%emt 0:04:16]} 31. Rd7 {[%emt 0:00:34]} Nb4 {[%emt 0:01:08]} 32. Ngf5 {[%emt 0:01:13]} Nc6 {[%emt 0:01:39]} 33. Rc7 {[%emt 0:03:09]} Ne5 {[%emt 0:01:25]} 34. Ne7+ {[%emt 0:01:24]} Kh7 {[%emt 0:00:51]} 35. N7d5 {[%emt 0:02:08]} Ne6 {[%emt 0:03:09]} 36. Re7 {[%emt 0:00:58]} Kg6 {[%emt 0:01:09]} 37. Kg3 {[%emt 0:04:32]} Nc6 {[%emt 0:04:43]} 38. Rd7 {[%emt 0:01:20]} Rd8 {[%emt 0:01:10]} 39. Rb7 {[%emt 0:00:11]} f5 {[%emt 0:03:20]} 40. Kf2 {[%emt 0:01:49]} f4 {[%emt 0:01:54]} 41. Ng2 {[%emt 0:01:22]} Rf8 {[%emt 0:01:13]} 42. Nh4+ {[%emt 0:00:44]} Kh5 {[%emt 0:01:07]} 43. Nf3 {[%emt 0:00:09]} g5 {[%emt 0:00:32]} 44. b4 {[%emt 0:00:09]} Rf5 {[%emt 0:06:33]} 45. Nd2 {[%emt 0:08:08]} (45. Rd7 $17) 45... Ned4 $19 {[%emt 0:01:49]} 46. Ne4 {[%emt 0:01:03]} Ne5 {[%emt 0:00:59]} 47. Ndf6+ {[%emt 0:00:28]} Kg6 {[%emt 0:01:13]} 48. Nd5 {[%emt 0:00:39]} Nd3+ {[%emt 0:03:47]} 49. Kf1 {[%emt 0:00:36]} Rf7 {[%emt 0:01:04]} 50. Ne7+ {[%emt 0:00:14]} Kh5 {[%emt 0:01:19]} 51. Nd6 {[%emt 0:00:51]} Rf6 {[%emt 0:00:34]} 52. Ne8 {[%emt 0:00:12]} Rf7 {[%emt 0:00:58]} 53. Nd6 {[%emt 0:00:05]} Rf8 {[%emt 0:00:42]} 54. b5 {[%emt 0:00:52]} f3 {[%emt 0:01:31]} 55. Ne4 {[%emt 0:00:52]} Rf4 {[%emt 0:01:24]} 56. Ng3+ {[%emt 0:01:39]} Kh4 {[%emt 0:00:02]} 57. Ng6+ {[%emt 0:00:13]} Kxg3 {[%emt 0:00:05]} 58. Nxf4 {[%emt 0:00:10]} Nxf4 {[%emt 0:00:09]} 59. Rxa7 {[%emt 0:00:24]} Nc2 {[%emt 0:00:24]} 60. Re7 {[%emt 0:00:30]} Ng2 {[%emt 0:00:12]} 0-1

[Event "IV Torneo de Semana Santa"]
[Site "Los Llanos de Aridane"]
[Date "2019.04.14"]
[Round "2.7"]
[White "Rodriguez Centenera, Sara"]
[Black "Hernandez Leon, Sergio"]
[Result "0-1"]
[ECO "A45"]
[WhiteElo "1704"]
[BlackElo "2157"]
[Annotator "NA"]
[PlyCount "94"]
[EventDate "2019.04.13"]
[EventType "swiss"]
[EventCountry "ESP"]
[SourceTitle "playchess.com"]
[Source "ChessBase"]
[SourceQuality "1"]
[TimeControl "5400+30"]

1. d4 {[%emt 0:00:00]} Nf6 {[%emt 0:00:00]} 2. c3 {[%emt 0:00:02]} g6 {[%emt 0:00:11]} 3. Nd2 {[%emt 0:00:21]} Bg7 {[%emt 0:01:12]} 4. e3 {[%emt 0:01:09]} O-O {[%emt 0:00:59]} 5. Bd3 {[%emt 0:00:19]} (5. Be2 d6 6. e4 Nbd7 7. f4 e5 8. fxe5 dxe5 9. d5 c6 10. dxc6 bxc6 11. Ngf3 {0-1 (39) Lebel Arias,J (1724)-Tsiganova,M (2102) Batumi 2018}) 5... d6 {[%emt 0:00:18]} 6. Ne2 {[%emt 0:01:48] A45: Trompowsky Attack} c5 {[%emt 0:01:01]} 7. O-O {[%emt 0:00:47]} b6 $146 {[%emt 0:00:36]} ({Predecessor:} 7... Nc6 8. b3 a6 9. Bb2 e5 10. Rc1 Bd7 11. Ne4 {1-0 (33) Dettmann,H (1945)-Laske,M (1922) Mecklenburg VP 2009}) 8. e4 {[%emt 0:07:09]} Bb7 {[%emt 0:02:06]} 9. b3 {[%emt 0:02:34]} cxd4 {[%emt 0:04:44]} 10. cxd4 {[%emt 0:00:52]} Nc6 {[%emt 0:09:41]} 11. Bb2 {[%emt 0:05:08]} Nd7 {[%emt 0:10:29]} 12. Rc1 {[%emt 0:03:37]} Rc8 {[%emt 0:08:40]} 13. Nc4 {[%emt 0:06:40]} b5 {[%emt 0:09:12]} 14. Ne3 {[%emt 0:00:51]} a6 {[%emt 0:01:40]} 15. a3 {[%emt 0:10:42]} e5 {[%emt 0:02:46]} 16. d5 {[%emt 0:02:29]} Ne7 {[%emt 0:03:14]} 17. Rxc8 {[%emt 0:01:48]} Qxc8 {[%emt 0:01:27]} 18. Qc2 {[%emt 0:02:23]} Qxc2 {[%emt 0:05:28]} 19. Bxc2 {[%emt 0:01:36]} f5 {[%emt 0:00:39]} 20. f3 {[%emt 0:00:54]} Bh6 {[%emt 0:01:44]} 21. Nd1 {[%emt 0:04:39]} Rc8 {[%emt 0:02:30]} 22. Bb1 {[%emt 0:05:06]} Nc5 {[%emt 0:01:49]} 23. Bc1 {[%emt 0:04:18]} Bxc1 {[%emt 0:01:22]} 24. Nxc1 {[%emt 0:00:10]} Nxe4 {[%emt 0:00:17]} 25. fxe4 {[%emt 0:02:44]} Rxc1 {[%emt 0:00:20]} 26. Nf2 {[%emt 0:05:59]} Rxf1+ {[%emt 0:01:28]} 27. Kxf1 {[%emt 0:00:08]} Kf8 {[%emt 0:00:44]} 28. g4 {[%emt 0:06:33]} (28. b4 $17) 28... fxe4 {[%emt 0:03:59]} 29. Nxe4 {[%emt 0:00:36]} Bxd5 {[%emt 0:00:44]} 30. Nxd6 {[%emt 0:00:46]} Bxb3 {[%emt 0:00:17]} 31. Be4 {[%emt 0:04:12]} Bd5 {[%emt 0:02:58]} 32. Bd3 {[%emt 0:01:03]} Nc6 {[%emt 0:01:36]} 33. Ne4 {[%emt 0:01:50]} Bxe4 {[%emt 0:02:49]} 34. Bxe4 {[%emt 0:00:05]} Na5 {[%emt 0:00:06]} 35. Ke2 {[%emt 0:01:09]} Nc4 {[%emt 0:00:14]} 36. a4 {[%emt 0:00:27]} bxa4 {[%emt 0:00:35]} 37. Bd5 {[%emt 0:01:08]} Nd6 {[%emt 0:01:58]} 38. Ke3 {[%emt 0:00:38]} h6 {[%emt 0:00:16]} 39. h4 {[%emt 0:02:05]} Ke7 {[%emt 0:00:29]} 40. g5 {[%emt 0:02:49]} hxg5 {[%emt 0:01:08]} 41. hxg5 {[%emt 0:00:01]} Kd7 {[%emt 0:01:28]} 42. Kd3 {[%emt 0:02:35]} Kc7 {[%emt 0:01:04]} 43. Kc3 {[%emt 0:00:51]} a5 {[%emt 0:00:57]} 44. Kb2 {[%emt 0:00:40]} e4 {[%emt 0:00:22]} 45. Kc3 {[%emt 0:02:09]} a3 $19 {[%emt 0:03:51]} 46. Kd4 {[%emt 0:02:37]} Nb5+ {[%emt 0:01:06]} 47. Kc4 {[%emt 0:03:58]} a2 {[%emt 0:00:07] Kd4 [%emt 00:00:09] Kd6+ [%emt 00:00:21]} 0-1